Cogmind - Beta 13 X1 @@@ ROGUE MODE // 2023.08.28 @ 01:46:06 Player: VR-DUX Result: Destroyed by Y-54 Guardian with Flak Gun Performance ------------- Evolutions (3) 1500 Regions Visited (6) 1200 Robots Destroyed (74) 370 Value Destroyed (1631) 1631 Prototype IDs (4) 80 Alien Tech Used (0) 0 Bonus (-171) -171 TOTAL SCORE: 4610 Bonus ------- High Alert Combat Kills 75 Follower Combat Kills 73 Friendly Fire -319 Cogmind --------- Core Integrity 0/700 Matter 268/300 Energy 80/100 System Corruption 0% Temperature Cool (12) Movement Core (200) Ox3 Location -7/Factory Parts ------- > --- POWER (1) -------- (None) > --- PROPULSION (5) --- (None) > --- UTILITY (5) ------ Medium Storage Unit Advanced Targeting Computer > --- WEAPON (2) ------- (None) > --- INVENTORY (10) --- Cesium-ion Thruster Cesium-ion Thruster Improved VTOL Module Xenon Bombardment Thruster Improved Heat Sink Small Storage Unit Peak State ------------ > --- POWER ------------ Light Deuterium Engine > --- PROPULSION ------- Xenon Bombardment Thruster Xenon Bombardment Thruster Xenon Bombardment Thruster Xenon Bombardment Thruster Xenon Bombardment Thruster > --- UTILITY ---------- Medium Storage Unit Improved Sensor Array Advanced Targeting Computer Improved Medium Armor Plating Hacking Suite > --- WEAPON ----------- Powered Hammer > --- INVENTORY -------- Improved Ion Engine Cesium-ion Thruster Cesium-ion Thruster Cesium-ion Thruster Cesium-ion Thruster Improved VTOL Module Xenon Bombardment Thruster Improved Heat Sink Small Storage Unit Heavy Rocket Launcher [Rating: 44] Favorites ----------- Power Ion Engine Engine Ion Engine Propulsion Light Treads Treads Light Treads Leg Aluminum Leg Wheel Compact Wheel Flight Unit Improved VTOL Module Utility Large Storage Unit Device Experimental Sensor Array Storage Large Storage Unit Processor Signal Interpreter Hackware Hacking Suite Protection Hardened Medium Armor Plating Weapon Assault Rifle Energy Gun Medium Laser Energy Cannon EM Pulse Cannon Ballistic Gun Assault Rifle Ballistic Cannon Light Cannon Launcher Rocket Launcher Impact Weapon Powered Hammer Build | -11 -10 -10 -10 -9 -8 -7 ------- Run | Jun Mat Min Exi Min Mat Fac Slots Evolved 6 | . . . . . 4 2 Power . | . . . . . . . Propulsion 3 | . . . . . 2 1 Utility 3 | . . . . . 2 1 Weapon . | . . . . . . . Parts Attached 107 | . 18 3 . 9 55 22 Power 9 | . 3 . . . 4 2 Engine 9 | . 3 . . . 4 2 Core . | . . . . . . . Reactor . | . . . . . . . Propulsion 46 | . 8 . . 5 21 12 Treads 10 | . 4 . . 3 3 . Leg . | . . . . . . . Wheel 11 | . 4 . . 1 6 . Hover . | . . . . . . . Flight 25 | . . . . 1 12 12 Utility 28 | . 2 2 . 2 16 6 Device 9 | . . 2 . 2 3 2 Storage 7 | . 1 . . . 5 1 Processor 2 | . 1 . . . . 1 Hackware 2 | . . . . . 1 1 Protection 8 | . . . . . 7 1 Artifact . | . . . . . . . Weapon 24 | . 5 1 . 2 14 2 Energy Gun 3 | . . . . 1 2 . Energy Cannon 2 | . . . . . 2 . Ballistic Gun 8 | . 2 1 . 1 4 . Ballistic Cannon 2 | . 2 . . . . . Launcher 7 | . 1 . . . 5 1 Special Weapon . | . . . . . . . Impact Weapon 2 | . . . . . 1 1 Slashing Weapon . | . . . . . . . Piercing Weapon . | . . . . . . . Special Melee Weapon . | . . . . . . . Unidentified Prototypes 4 | . . 1 . . 3 . Corrupted Parts 5 | . . . . 5 . . System Corruption 29 | . . . . 29 . . Parts Lost 23 | . 4 1 . . 6 12 Power 4 | . 1 . . . 1 2 Propulsion 11 | . 2 . . . 2 7 Utility 5 | . . . . . 3 2 Weapon 3 | . 1 1 . . . 1 Highest Loss Streak 12 | . 3 1 . . 4 12 To Critical Strikes . | . . . . . . . Average Slot Usage (%) 95 | . 97 99 100 91 87 85 Engine 12 | . 13 14 14 14 8 6 Treads 17 | . 21 28 28 12 . . Wheel 4 | . 3 . . 1 13 . Flight 5 | . . . . 7 14 35 Device 7 | . . 6 14 11 11 6 Storage 12 | . 14 14 14 14 9 7 Processor 5 | . 13 7 . . . 6 Hackware 1 | . . . . . 3 6 Protection 2 | . . . . . 9 4 Energy Gun 5 | . 11 . . 12 3 . Ballistic Gun 8 | . 6 12 14 14 4 2 Ballistic Cannon 7 | . 7 14 14 1 . . Launcher 1 | . 2 . . . 4 . Naked Turns . | . . . . . . . Heaviest Build 115 | 12 31 31 31 34 115 26 Greatest Support 60 | 20 40 40 40 40 60 30 Greatest Overweight (x) 10 | . 1 . . 10 8 1 Average Overweight (x) . | . . . . 2 . . Largest Inventory Capacity 25 | . 15 15 15 15 25 10 Average Capacity 13 | . 12 15 15 15 14 9 Most Carried 21 | . 15 15 15 15 21 10 Average Carried 12 | . 10 12 15 14 12 8 Final Capacity 15 | 8 15 15 15 15 8 10 Final Carried 15 | 6 13 15 15 15 8 6 Class Distribution -------------------- 84% | Mutant 12% | Sprinter Dominant Class ---------------- Mutant | -10/Materials Mutant | -10/Mines Mutant | -10/Exiles Mutant | -9/Mines Mutant | -8/Materials Sprinter | -7/Factory Resources | -11 -10 -10 -10 -9 -8 -7 ----------- Run | Jun Mat Min Exi Min Mat Fac Matter Collected 2179 | 200 554 232 10 64 936 183 Remotely . | . . . . . . . Salvage Created 2372 | . 929 249 . 64 1025 105 Parts 137 | . 59 19 . 1 48 10 Haulers Intercepted 7 | . 2 . . . 5 . Recyclers Shooed 9 | . 1 2 . . 3 3 Parts Field Recycled . | . . . . . . . Retrieved Matter . | . . . . . . . Parts Self-Destructed . | . . . . . . . Prevented . | . . . . . . . Kills | -11 -10 -10 -10 -9 -8 -7 ------- Run | Jun Mat Min Exi Min Mat Fac Combat Hostiles Destroyed 40 | . 18 7 . . 13 2 Guns 14 | . 11 1 . . 2 . Cannons 13 | . 5 4 . . 4 . AOE 13 | . 2 2 . . 7 2 Classes Destroyed 12 | . 9 . . . 2 1 Worker 6 | . 3 . . . 3 . Builder 5 | . 2 1 . . 1 1 Tunneler 2 | . 1 1 . . . . Hauler 7 | . 2 . . . 5 . Recycler 8 | . 2 1 . 1 3 1 Operator 2 | . 1 . . . 1 . Watcher 3 | . 2 . . . 1 . Swarmer 9 | . 3 3 . . 3 . Cutter 2 | . . . . . . 2 Grunt 26 | . 15 4 . . 7 . Brawler 1 | . . . . . 1 . Sentry 3 | . . . . . 3 . Best Kill Streak 7 | . 6 7 . 1 7 2 Combat Bots Only 6 | . 6 5 . . 4 2 Max Kills in Single Turn 2 | . 2 1 . 1 2 2 Gunslinging . | . . . . . . . Exploded 2 | . 1 1 . . 2 2 Melee . | . . . . . . . Uniques/NPCs Destroyed . | . . . . . . . Combat | -11 -10 -10 -10 -9 -8 -7 -------- Run | Jun Mat Min Exi Min Mat Fac Damage Taken 3828 | . 905 350 . 24 1172 1377 Core 1086 | . 190 31 . . 163 702 Absorbed by Shields . | . . . . . . . Redirected to Shielding 4 | . . . . . 4 . Regen/Repaired (Parts) 135 | . . . . . 55 80 Core Remaining (%) 60 | 100 . . . 11 70 . Volleys Fired 264 | . 110 28 . 3 106 17 Largest 2 | . 2 2 . 2 2 1 Hottest 97 | . 85 55 . 89 97 39 Shots Fired 399 | . 199 41 . 7 135 17 Gun 267 | . 142 13 . 6 91 15 Cannon 95 | . 45 25 . 1 24 . Launcher 37 | . 12 3 . . 20 2 Special . | . . . . . . . Kinetic 208 | . 93 38 . 4 58 15 Thermal 130 | . 94 . . 3 33 . Explosive 37 | . 12 3 . . 20 2 Electromagnetic 24 | . . . . . 24 . Robot Hit Streak 12 | . 8 12 . 2 7 8 Robot Miss Streak 7 | . 5 4 . 2 7 3 Penetration Max . | . . . . . . . Secondary Targets 1 | . 1 . . . . . Max Gunslinging Chain 1 | . 1 . . . . . Shots Hit Robots 198 | . 94 23 . 3 69 9 Core Hits 120 | . 48 14 . 1 46 11 Critical Kills . | . . . . . . . Critical Parts Destroyed . | . . . . . . . Critical Strikes 7 | . 5 2 . . . . Burn 5 | . 5 . . . . . Blast 2 | . . 2 . . . . Melee Attacks 17 | . . . . . 2 15 Impact 17 | . . . . . 2 15 Slashing . | . . . . . . . Piercing . | . . . . . . . Sneak Attacks 1 | . . . . . . 1 Combat Hostiles . | . . . . . . . Follow-up Attacks . | . . . . . . . Damage Inflicted 5008 | . 1687 520 . 67 2406 328 Guns 1779 | . 981 87 . 67 571 73 Cannons 1100 | . 448 254 . . 398 . Explosions 2055 | . 258 176 . . 1437 184 Melee 56 | . . . . . . 56 Ramming 18 | . . 3 . . . 15 Kinetic 1573 | . 827 341 . 29 303 73 Thermal 1035 | . 602 . . 38 395 . Explosive 1928 | . 258 176 . . 1310 184 Electromagnetic 398 | . . . . . 398 . Impact 56 | . . . . . . 56 Slashing . | . . . . . . . Piercing . | . . . . . . . Highest Corruption 26 | . . . . 26 16 . Average Corruption 6 | . . . . 12 4 . Corruption Purged 4 | . . . . 4 . . Corruption Blocked . | . . . . . . . Effects 40 | . . . . 9 31 . Message Errors 10 | . . . . 1 9 . Matter Fused 12 | . . . . 4 8 . Heat Flow Errors 6 | . . . . 1 5 . Energy Discharges 2 | . . . . 1 1 . Data Loss (minor) 6 | . . . . 1 5 . Data Loss (major) 1 | . . . . . 1 . Misfires 2 | . . . . 1 1 . Weapon Failures 1 | . . . . . 1 . Overload Shots . | . . . . . . . Overflow Damage 77 | . . 2 . . 33 42 Projectiles 2 | . . 2 . . . . Explosions 50 | . . . . . 33 17 Melee 25 | . . . . . . 25 Knockbacks 4 | . 3 1 . . . . Impact . | . . . . . . . Kinetic 4 | . 3 1 . . . . Secondary . | . . . . . . . Self-Inflicted Damage 495 | . 35 12 . . 372 76 Shots 13 | . 3 1 . . 7 2 Rammed 11 | . . 1 . . . 10 Targets Rammed 11 | . . 1 . . . 10 Kicked . | . . . . . . . Crushed . | . . . . . . . Highest Temperature 470 | . 231 24 . 256 470 33 Average Temperature 82 | . 64 7 . 85 120 8 Received Heat Transfer 1008 | . 384 156 . . 171 297 Effects 9 | . . . . . 9 . Shutdowns 4 | . . . . . 4 . Energy Bleed 2 | . . . . . 2 . Interference 2 | . . . . . 2 . Short Circuit 1 | . . . . . 1 . Siege Activations . | . . . . . . . Robots Corrupted . | . . . . . . . Combat Hostiles . | . . . . . . . Parts Fried 4 | . . . . . 2 2 Impact Corruptions 1 | . . . . . . 1 Robots Melted . | . . . . . . . Combat Hostiles . | . . . . . . . Parts Melted 1 | . 1 . . . . . Heat Transferred 2838 | . 2146 . . 74 618 . Parts Sabotaged . | . . . . . . . Parts Stolen . | . . . . . . . Parts Stripped . | . . . . . . . Power Chain Reactions . | . . . . . . . Missiles Intercepted . | . . . . . . . Alert | -11 -10 -10 -10 -9 -8 -7 ------- Run | Jun Mat Min Exi Min Mat Fac Peak Influence 717 | . 234 318 . 5 717 560 Initial 310 | . . 91 . . 1 310 Average 174 | . 82 165 . 1 295 410 Maximum Alert Level 3 | . 1 1 . . 3 2 Low Security (%) 63 | . 88 66 . 100 31 . Level 1 27 | . 11 33 . . 47 39 Level 2 8 | . . . . . 15 60 Level 3 1 | . . . . . 5 . Level 4 . | . . . . . . . Level 5 . | . . . . . . . High Security . | . . . . . . . Max Security . | . . . . . . . Squads Dispatched 10 | . 6 . . . 1 3 Investigation 5 | . 4 . . . . 1 Extermination . | . . . . . . . Reinforcement 4 | . 2 . . . 1 1 Assault . | . . . . . . . Garrison 1 | . . . . . . 1 Intercept . | . . . . . . . Searches Triggered . | . . . . . . . Construction Impeded 1 | . . . . . 1 . Haulers Reinforced . | . . . . . . . Active Scanning Responses . | . . . . . . . Cargo Convoy Interrupts . | . . . . . . . Stealth | -11 -10 -10 -10 -9 -8 -7 --------- Run | Jun Mat Min Exi Min Mat Fac Distress Signals 3 | . . 2 . . 1 . Communications Jammed . | . . . . . . . Distress Signals . | . . . . . . . Times Spotted 85 | . 28 9 . . 29 19 Peak Tracking Total 7 | . 3 5 . . 4 7 Tactical Retreats 8 | . 1 1 . . 1 5 Traps | -11 -10 -10 -10 -9 -8 -7 ------- Run | Jun Mat Min Exi Min Mat Fac Traps Triggered 5 | . 3 . . 2 . . Indirectly . | . . . . . . . Trap Hack Attempts . | . . . . . . . Triggered . | . . . . . . . Disarmed . | . . . . . . . Reprogrammed . | . . . . . . . Reused . | . . . . . . . Traps Extracted . | . . . . . . . Installed . | . . . . . . . Triggered . | . . . . . . . Machines | -11 -10 -10 -10 -9 -8 -7 ---------- Run | Jun Mat Min Exi Min Mat Fac Machines Disabled 16 | . . . . . 14 2 Max in Single Turn 3 | . . . . . 3 1 Garrison Access 2 | . . . . . 1 1 Machines Repaired . | . . . . . . . Machines Sabotaged . | . . . . . . . Overloaded Fab Kills . | . . . . . . . Hacking | -11 -10 -10 -10 -9 -8 -7 --------- Run | Jun Mat Min Exi Min Mat Fac Machines Accessed 28 | . 6 . 4 1 10 7 Terminals 12 | . 4 . . . 5 3 Fabricators . | . . . . . . . Repair Stations 4 | . . . . . 2 2 Recycling Units 5 | . 2 . . . 2 1 Scanalyzers . | . . . . . . . Garrison Access 2 | . . . . . 1 1 Total Hacks 62 | . 18 . 4 1 23 16 Successful 27 | . 3 . 4 1 14 5 Failed 35 | . 15 . . . 9 11 Catastrophic 10 | . 5 . . . 2 3 Database Lockouts . | . . . . . . . Manual 20 | . 11 . . . 6 3 Terminals 29 | . 11 . . . 10 8 Fabricators . | . . . . . . . Repair Stations 13 | . . . . . 10 3 Recycling Units 12 | . 7 . . . 2 3 Scanalyzers . | . . . . . . . Garrison Access 3 | . . . . . 1 2 Terminal Hacks 11 | . 2 . 4 1 3 1 Record 4 | . . . 4 . . . Robot Analysis 1 | . 1 . . . . . Open Door 1 | . . . . 1 . . Branch Access Points 2 | . 1 . . . 1 . Zone Layout 3 | . . . . . 2 1 Fabricator Hacks . | . . . . . . . Repair Station Hacks 10 | . . . . . 8 2 Scan Component 5 | . . . . . 4 1 Repair 5 | . . . . . 4 1 Recycling Unit Hacks 4 | . 1 . . . 2 1 Retrieve Components 4 | . 1 . . . 2 1 Scanalyzer . | . . . . . . . Garrison Access Hacks 2 | . . . . . 1 1 Seal Access 2 | . . . . . 1 1 Unauthorized Hacks . | . . . . . . . Terminals . | . . . . . . . Fabricators . | . . . . . . . Repair Stations . | . . . . . . . Recycling Units . | . . . . . . . Scanalyzers . | . . . . . . . Garrison Access . | . . . . . . . Data Cores Recovered . | . . . . . . . Used . | . . . . . . . Hacking Detections 18 | . 6 . . . 6 6 Full Trace Events 8 | . 6 . . . 1 1 Feedback Events . | . . . . . . . Feedback Blocked . | . . . . . . . Robot Schematics Acquired . | . . . . . . . Robots Built . | . . . . . . . Authchips . | . . . . . . . Time . | . . . . . . . Total Robot Build Rating . | . . . . . . . Part Schematics Acquired . | . . . . . . . Parts Built . | . . . . . . . Authchips . | . . . . . . . Time . | . . . . . . . Total Part Build Rating . | . . . . . . . Parts Repaired 5 | . . . . . 4 1 Time 245 | . . . . . 201 44 Parts Recycled . | . . . . . . . Recycled Matter . | . . . . . . . Retrieved Matter . | . . . . . . . Retrieved Components 14 | . . . . . 14 . Parts Scanalyzed . | . . . . . . . Part Schematics Acquired . | . . . . . . . Parts Damaged . | . . . . . . . Bothacking | -11 -10 -10 -10 -9 -8 -7 ------------ Run | Jun Mat Min Exi Min Mat Fac Used RIF Installer . | . . . . . . . Robots Hacked . | . . . . . . . Non-combat . | . . . . . . . Combat . | . . . . . . . Robot Hacks Applied . | . . . . . . . Relay Couplers Released . | . . . . . . . Fabnet Peak Effective % . | . . . . . . . Robots Rewired . | . . . . . . . Allies Hacked . | . . . . . . . Hacks Repelled . | . . . . . . . Allies | -11 -10 -10 -10 -9 -8 -7 -------- Run | Jun Mat Min Exi Min Mat Fac Total Allies 3 | . . 3 . . . . Largest Group 3 | . . 3 3 3 3 . Highest-Rated Group 40 | . . 40 40 40 40 . Highest-Rated Ally 16 | . . 16 16 16 16 . Total Orders . | . . . . . . . Ally Attacks 17 | . . . . . 17 . Total Damage 193 | . . . . . 193 . Kills 3 | . . . . . 3 . Allies Corrupted . | . . . . . . . Allies Melted . | . . . . . . . Intel | -11 -10 -10 -10 -9 -8 -7 ------- Run | Jun Mat Min Exi Min Mat Fac Robot Analysis Total 1 | . 1 . . . . . Derelict Logs Recovered 1 | . . 1 . . . . Drone Launches . | . . . . . . . Drone Recoveries . | . . . . . . . Exploration | -11 -10 -10 -10 -9 -8 -7 ------------- Run | Jun Mat Min Exi Min Mat Fac Turns Passed 6242 | . 1923 974 1324 327 1375 319 Spaces Moved 4164 | 1 1057 546 828 68 1114 550 Core 8 | . . . . 8 . . Treads 2198 | . 801 546 828 21 2 . Legs 18 | 1 17 . . . . . Wheels 824 | . 239 . . 31 554 . Hover . | . . . . . . . Flight 1116 | . . . . 8 558 550 Fastest Speed 24 | 120 90 160 160 115 26 24 Average Speed 115 | 120 146 160 160 221 68 25 Slowest Speed 595 | 120 240 160 160 550 595 107 Overloaded Moves . | . . . . . . . Propulsion Burnouts . | . . . . . . . Robots Hopped 2 | . . . . . 2 . Cave-ins Triggered 1 | . . . . . 1 . Exploration Rate (%) 56 | 1 96 98 93 11 75 19 Regions Visited 6 Branch Regions 3 Pre-discovered Areas 1 | . . 1 . . . . Known Exits Taken 1 | . 1 . . . . . Unknown Exits Taken 5 | 1 . 1 1 1 1 . Scrap Searched 2 | . . 2 . . . . Spaces Dug 33 | . 7 . . . 12 14 Terrain Destroyed 387 | . 65 26 . . 264 32 Melee 16 | . . . . . 2 14 Projectile . | . . . . . . . AOE 371 | . 65 26 . . 262 18 Terrain Rammed . | . . . . . . . Walls Destroyed . | . . . . . . . Machines Disabled . | . . . . . . . Actions | -11 -10 -10 -10 -9 -8 -7 --------- Run | Jun Mat Min Exi Min Mat Fac Total 5201 | . 1230 605 827 240 1606 693 Wait 492 | . 17 23 . 142 257 53 Move 4154 | . 1056 545 827 67 1109 550 Hop 2 | . . . . . 2 . Pick Up 62 | . 17 3 . 9 23 10 Fast Attach 33 | . 3 2 . 2 21 5 Attach 38 | . 7 1 . 3 17 10 Detach 12 | . . . . . 9 3 Swap 36 | . 8 . . 4 17 7 Drop 80 | . 12 2 . 10 43 13 Fire 264 | . 110 28 . 3 106 17 Melee 17 | . . . . . 2 15 Ram 10 | . . . . . . 10 Kick . | . . . . . . . Crush 1 | . . 1 . . . . Escape Stasis . | . . . . . . . Rewire . | . . . . . . . Trap . | . . . . . . . Miscellaneous . | . . . . . . . Route ------- -11/Junkyard -10/Materials (discovered 4 exits: *Mat x3 / *Min) -10/Mines (discovered 4 exits: *Mat x2 / *Exi / [*Sub]) -10/Exiles (discovered 2 exits: *Min x2) -9/Mines -8/Materials (discovered 2 exits: *Fac x2) -7/Factory (discovered 2 exits: [*Fac] / [*Low]) History --------- Turn | Location | Event 1 | -11/Junkyard | Discovered new exit (range 0) 1 | -11/Junkyard | Entered Materials 320 | -10/Materials | Discovered new exit (range 8) 329 | -10/Materials | Build established: Mutant 336 | -10/Materials | Identified exit to Materials 380 | -10/Materials | Identified exit to Mines 478 | -10/Materials | Discovered exit to Materials (range 9) 1320 | -10/Materials | Discovered exit to Materials (range 11) 1564 | -10/Materials | Core integrity fell below 50% 1600 | -10/Materials | Lost 3 parts (1p1n1w) 1924 | -10/Materials | Entered Mines 1926 | -10/Mines | Core integrity fell below 20% 2049 | -10/Mines | Discovered exit to Materials (range 4) 2078 | -10/Mines | Discovered new exit (range 9) 2097 | -10/Mines | Discovered exit to Materials (range 8) 2121 | -10/Mines | Learned location of Storage (-9) 2519 | -10/Mines | Assisted by bots powering up and referring to "LRC-V3" 2566 | -10/Mines | Learned Materials stockpile data 2587 | -10/Mines | Found a damaged Exp. Sensor Array with a note attached 2615 | -10/Mines | Found Prototype Device 2615 | -10/Mines | Identified Exp. Sensor Array 2834 | -10/Mines | Received a Rocket Launcher from a helpful Derelict 2892 | -10/Mines | Deemed a non-threat by the Exiles lab entrance 2892 | -10/Mines | Discovered new exit (range 5) 2898 | -10/Mines | Entered Exiles 2898 | -10/Exiles | Found Exiles lab abandoned 2898 | -10/Exiles | Accompanied by 3 allies 3703 | -10/Exiles | Discovered new exit (range 10) 3873 | -10/Exiles | Discovered new exit (range 14) 4222 | -10/Exiles | Entered Mines 4222 | -9/Mines | Accompanied by 3 allies 4226 | -9/Mines | Met a Derelict who couldn't figure out how to use a Trap Extractor 4269 | -9/Mines | System corruption reached 10% 4285 | -9/Mines | Met a Derelict bent on vengeance 4532 | -9/Mines | Discovered new exit (range 8) 4548 | -9/Mines | Assembled infested the area 4549 | -9/Mines | Entered Materials 4549 | -8/Materials | Accompanied by 3 allies 4549 | -8/Materials | Evolved 4 slots: Propulsion x2, Utility x2 4767 | -8/Materials | Discovered new exit (range 8) 5537 | -8/Materials | Repaired Exp. Sensor Array 5582 | -8/Materials | Repaired Xenon Bombardment Thruster 5631 | -8/Materials | Discovered new exit (range 9) 5687 | -8/Materials | Repaired Imp. VTOL Module 5707 | -8/Materials | Repaired Lgt. Deuterium Engine 5906 | -8/Materials | Crushed by falling debris 5906 | -8/Materials | System corruption reached 10% 5924 | -8/Materials | Entered Factory 5924 | -7/Factory | Evolved 2 slots: Propulsion x1, Utility x1 5937 | -7/Factory | Lost 4 parts (1p3u) 5937 | -7/Factory | Discovered new exit (range 15) 5967 | -7/Factory | Garrison activated, responded to threat 6017 | -7/Factory | Build established: Sprinter 6100 | -7/Factory | Repaired Hvy. Rocket Launcher 6110 | -7/Factory | Discovered new exit (range 15) 6235 | -7/Factory | Core integrity fell below 50% 6239 | -7/Factory | Core integrity fell below 20% 6243 | -7/Factory | Destroyed by Y-54 Guardian with Flak Gun Last Messages --------------- 06222_ Repair Station disabled. 06222_ Hvy. Rocket Launcher destroyed. 06222_ Destroyed Hvy. Rocket Launcher. 06225_ Imp. Sensor Array destroyed. 06225_ Hacking Suite destroyed. 06227_ The unstable cave ceiling collapses. 06228_ Cesium-ion Thruster destroyed. 06229_ K-01 Serf collects debris. 06231_ Imp. Ion Engine destroyed. 06231_ Slammed into C-17 Slicer. 06232_ Acquired 8 matter. 06233_ Slammed into C-17 Slicer. 06233_ K-01 Serf collects debris. 06234_ Slammed into C-17 Slicer. 06237_ K-01 Serf collects debris. 06237_ Slammed into C-17 Slicer. 06240_ Cesium-ion Thruster destroyed. 06241_ Slammed into C-17 Slicer. 06243_ The unstable cave ceiling collapses. 06243_ Slammed into C-17 Slicer. Map ----- +----------------------------------------------------+ | ## #???????# ###+########### """"""" | | ?### ###???????# """"""" | | ??##+########### | | ??# # | | ??# """"""""" # ""T"" | | ??# # """"" | | ??# """"""""" # ###"#############+###### | | ??# # # ! # ## | | ??# """"""""" # # # ] ## | | ??# # # # """" ## | | ??# """"""""" # # """ """ #[ """" ## | | ??# + + * """ """ # """" ## ## | | ??# """"""""" # # """ """ # """" ## #? | | ??# # # ?#" ## #? | | ??# # # = """ """?#"" !] ## #? | | ??#+############ # """ ""??#"" !] ## #? | | ??# #??????????# # """ ""??#"" !] ## #? | | ??# #??????????# # ????#"" ## #? | | ###+##?????????# # ????#"T ## #? | | #?######### ###########??#"" """" #? ?? | | """ # # # ## # #??#"" """" #?????? | | """ # # # #??#"" """" #?????? | | """ #??"" """ # #??#"" """" #?????? | | #??"" """ # # #??#" #?????? | | """ # """ """ # # m #??# #?????? | | """ # + YY @c #??#######+##?????? | | """ # #k / l #????????# #??????? | | # # % ] ########## #" # | | ###+############ g !% ; ! + | | g /= ###%############## # | | # # ##?###?????????????? ?? | | % # ###????????????????????###? | | ###?????????????????????????? | | #???????????????????????????? | | ###+######+######+#######????????????????????????? | | ???? ?# # #????????????????????????? | | ??? # """" # ]]] #????????????????????????? | | ???"" # """" # ]] #????????????????????????? | | ??""" # """" # ]] #????????????????????????? | | ??""" # """" # #????????????????????????? | | # # """" " """ #????????????????????????? | | # """ # """" #[ """ ##???????????????????????? | | " """ # # """ #???????????????????????? | | # """ # ! #! "##??????????????????????? | | ? ###################"#??????????????????????? | | ?? ! #?????# """"""" #??????????????????????? | | ??! #?????# """"""" #??????????????????????? | | ???####?????# """"""" #??????????????????????? | | ????????????# """"""" #??????????????????????? | | ????????????# #??????????????????????? | +----------------------------------------------------+ Best States ------------- Heat Dissipation 34 Energy Generation 14 Energy Capacity 280 Matter Stores 300 Matter Capacity 300 Sight Range 16 Robot Scan Range 20 Terrain Scan Density 10 Armor Coverage 450 Power Shielding 33 Evasion (%) 65 Recoil Reduction 2 Offensive Hacking 10 Item Schematics ----------------- None Robot Schematics ------------------ None Fabricated ------------ Nothing Alien Tech Used ----------------- None Achievements -------------- None Challenges ------------ None Game ------ Seed CloakServoFlail Manual? 0 Play Time 01:26:29 Cumulative 80.3 hours Start 2023.08.28 @ 00:17:52 End 2023.08.28 @ 01:46:06 Sessions 1 Manual Loads 0 Difficulty Rogue Special Mode None Game No. 73 Rogue 73 Adventurer 0 Explorer 0 Win Type - Total 1 Types 1/0/0/0/0/0/0/0/0 Lore% 42 Gallery% 35 Achievement% 37 Wizard Run 0 Options --------- ASCII 0 Keyboard 0 Movement Mouse Keybinds 0 Fullscreen 1 Font 16/SmallcapsGlow Map View 84x54 Tactical HUD 1 Map Filters NONE Filters NONE Steam 1 RUN: 1e8d828c-70af-4c1f-a958-155d04158382